bitfinex/quotes_SOLUSD_20240809
["timestamp","ask_amount","ask_price","bid_price","bid_amount"]
[1723206396472,21.1802,155.98,155.89,45.0]
[1723206400184,1.60325041,155.97,155.89,45.0]
[1723206400490,27.5914,155.98,155.86,35.58]
[1723206400491,35.58,155.95,155.86,35.58]
[1723206400971,21.1802,155.98,155.87,1.2828974]
[1723206400972,35.58,155.97,155.87,1.2828974]
[1723206401178,20.0,155.96,155.87,1.2828974]
[1723206402790,35.58,155.95,155.87,1.2828974]
[1723206403015,35.58,155.95,155.86,35.58]
[1723206403172,41.9923,155.95,155.86,35.58]
[1723206403375,41.9923,155.95,155.84,35.58]
[1723206403575,6.4128,155.94,155.84,35.58]
[1723206403774,20.0,155.93,155.84,35.58]
[1723206404170,20.0,155.93,155.82,35.58]
[1723206404171,55.58,155.93,155.82,35.58]
[1723206404588,61.9934,155.93,155.82,35.58]
[1723206404767,20.0,155.93,155.86,35.58]
[1723206404970,20.0,155.94,155.87,1.28290004]
[1723206405376,26.4128,155.94,155.84,35.58]
[1723206405598,35.58,155.93,155.85,45.0]
[1723206406108,35.58,155.93,155.84,35.58]
[1723206406998,35.58,155.93,155.85,1.28308042]
[1723206407198,26.62887171,155.94,155.86,1.28298881]
[1723206407381,20.0,155.94,155.86,1.28298881]
[1723206408003,20.0,155.94,155.85,45.0]
[1723206409001,26.4129,155.94,155.85,45.0]
[1723206409179,35.58,155.93,155.84,35.58]
[1723206409384,20.0,155.92,155.84,35.58]
[1723206411502,20.0,155.92,155.76,35.58]
[1723206411503,35.58,155.89,155.74,22.953]
[1723206411797,35.58,155.87,155.78,35.58]
[1723206412906,20.0,155.88,155.78,35.58]
[1723206413793,20.0,155.88,155.79,46.28340056]
[1723206413993,20.0,155.88,155.8,0.12549]
[1723206414203,20.0,155.88,155.79,45.0]
[1723206414803,20.0,155.88,155.79,46.28336388]
[1723206415011,20.0,155.88,155.8,35.58]
[1723206415315,20.0,155.88,155.79,45.0]
[1723206415490,28.01953245,155.88,155.79,45.0]
[1723206415695,27.71,155.86,155.79,72.71]
[1723206415924,20.0,155.85,155.79,72.71]
[1723206416217,20.0,155.85,155.8,27.71]
[1723206416623,47.71,155.86,155.79,72.71]
[1723206416925,47.71,155.86,155.79,45.0]
[1723206417305,27.71,155.85,155.79,45.0]
[1723206417596,47.71,155.84,155.77,27.71]
[1723206417794,27.71,155.84,155.78,45.0]
[1723206418016,27.71,155.84,155.77,27.71]
[1723206418909,27.71,155.83,155.76,27.71]
[1723206419118,27.71,155.82,155.75,27.71]
[1723206419407,15.1846,155.83,155.76,27.71]
[1723206420291,15.1846,155.83,155.77,72.71]
[1723206420690,15.1846,155.83,155.78,27.71]
[1723206420892,6.4847,155.84,155.79,73.99311115]
[1723206421099,6.4847,155.84,155.79,27.71]
[1723206421493,6.4847,155.84,155.8,28.99345371]
[1723206421701,15.4272,155.87,155.82,27.71]
[1723206421902,15.4272,155.87,155.81,72.71]
[1723206422210,15.4272,155.87,155.64,25.11101307]
[1723206422211,34.1264,155.85,155.78,27.71]
[1723206422396,27.71,155.85,155.78,27.71]
[1723206422797,27.71,155.84,155.77,27.71]
[1723206423910,27.71,155.85,155.78,27.71]
[1723206424094,20.0,155.84,155.78,27.71]
[1723206425021,47.71,155.84,155.77,27.71]
[1723206427000,27.71,155.83,155.76,27.71]
[1723206427197,20.0,155.84,155.73,27.71]
[1723206427198,27.71,155.8,155.73,27.71]
[1723206427604,15.9804,155.79,155.73,27.71]
[1723206427816,15.9804,155.79,155.74,27.71]
[1723206428027,6.1155,155.82,155.77,27.71]
[1723206428519,6.1155,155.82,155.78,27.71]
[1723206428723,6.1155,155.82,155.77,27.71]
[1723206428907,6.1155,155.82,155.76,27.71]
[1723206429098,6.1155,155.82,155.71,1.28371685]
[1723206429099,6.1155,155.82,155.78,27.71]
[1723206429609,35.9804,155.84,155.79,28.9936611]
[1723206429808,15.9804,155.84,155.81,27.71]
[1723206430125,15.4554,155.89,155.83,27.71]
[1723206430320,43.1654,155.89,155.82,27.71]
[1723206430699,27.71,155.88,155.81,27.71]
[1723206431205,20.0,155.87,155.83,27.71]
[1723206431508,20.0,155.87,155.77,1.28318731]
[1723206431714,43.1654,155.89,155.82,27.71]
[1723206432425,43.1654,155.89,155.81,27.71]
[1723206432919,43.1654,155.89,155.78,0.12549]
[1723206432920,15.4554,155.89,155.84,27.71]
[1723206433105,15.4554,155.89,155.85,28.9930887]
[1723206433300,15.4554,155.89,155.84,27.71]
[1723206433518,15.4554,155.89,155.83,27.71]
[1723206434413,15.4554,155.89,155.85,27.71]
[1723206434624,15.4554,155.89,155.86,28.99297674]
[1723206434924,15.4554,155.89,155.86,27.71]
[1723206435425,43.1654,155.89,155.82,27.71]
[1723206435610,27.71,155.86,155.79,27.71]
[1723206436128,27.71,155.85,155.78,27.71]
[1723206436305,27.71,155.84,155.77,27.71]
[1723206436628,34.1277,155.82,155.75,27.71]
[1723206436931,44.263,155.81,155.74,27.71]
[1723206438127,16.553,155.81,155.75,27.71]
[1723206438424,44.263,155.81,155.75,27.71]
[1723206438631,16.553,155.81,155.77,27.71]
[1723206438829,6.3879,155.83,155.79,27.71]
[1723206439132,6.3879,155.83,155.78,27.71]
[1723206439515,6.3879,155.83,155.79,72.71]
[1723206439910,6.3879,155.83,155.79,27.71]
[1723206440115,6.3879,155.83,155.78,27.71]
[1723206440831,6.3879,155.83,155.77,27.71]
[1723206441141,34.0979,155.83,155.76,27.71]
[1723206441433,27.71,155.8,155.74,27.71]
[1723206441615,27.71,155.81,155.74,27.71]
[1723206442226,34.0979,155.83,155.77,27.71]
[1723206442419,20.0,155.82,155.77,27.71]
[1723206443421,20.0,155.82,155.78,45.0]
[1723206443618,20.0,155.82,155.77,27.71]
[1723206443818,20.0,155.82,155.76,27.71]
[1723206444135,20.0,155.82,155.77,72.71]
[1723206444324,6.3879,155.83,155.77,72.71]
[1723206444719,6.3879,155.83,155.78,27.71]
[1723206445322,34.0979,155.83,155.77,72.71]
[1723206445628,27.71,155.82,155.75,27.71]
[1723206446032,27.71,155.82,155.76,27.71]
[1723206446323,34.0979,155.83,155.76,27.71]
[1723206446733,27.71,155.82,155.76,27.71]
[1723206449017,6.3879,155.83,155.77,27.71]
[1723206449218,6.3879,155.83,155.78,72.71]
[1723206449642,34.0979,155.83,155.76,27.71]
[1723206450053,6.3879,155.83,155.78,27.71]
[1723206451619,6.3879,155.83,155.77,27.71]
[1723206451817,6.3879,155.83,155.76,27.71]
[1723206452015,34.0979,155.83,155.76,27.71]
[1723206452250,6.3879,155.83,155.78,27.71]
[1723206452820,6.3879,155.83,155.79,28.99345533]
[1723206453122,6.3879,155.83,155.79,27.71]
[1723206453843,6.3879,155.83,155.77,0.12549]
[1723206453844,6.3879,155.83,155.8,1.28353051]
[1723206454138,6.3879,155.83,155.79,45.0]
[1723206454360,27.71,155.82,155.71,1.28353051]
[1723206454640,27.71,155.82,155.73,27.71]
[1723206454641,27.71,155.8,155.73,27.71]
[1723206455421,27.71,155.79,155.72,27.71]
[1723206455621,27.71,155.8,155.73,1.28401846]
[1723206455820,27.71,155.8,155.73,27.71]
[1723206456241,27.71,155.75,155.7,0.8038863]
[1723206457354,34.159,155.76,155.7,0.8038863]
[1723206458239,35.76449915,155.76,155.7,0.8038863]
[1723206458628,27.71,155.73,155.7,0.8038863]
[1723206459953,16.5602,155.72,155.7,0.8038863]
[1723206460120,18.16587653,155.72,155.7,0.8038863]
[1723206460320,45.87587653,155.72,155.7,0.8038863]
[1723206460951,27.71,155.71,155.7,0.8038863]
[1723206461545,47.71,155.71,155.7,0.8038863]
[1723206462029,54.201,155.71,155.62,27.71]
[1723206462228,27.71,155.68,155.62,27.71]
[1723206462435,27.71,155.66,155.59,27.71]
[1723206462634,27.71,155.66,155.6,27.71]
[1723206463149,29.31612022,155.67,155.6,27.71]
[1723206463663,27.71,155.67,155.6,27.71]
[1723206464163,27.71,155.67,155.55,6.0051]
[1723206464365,1.60629665,155.69,155.58,27.71]
[1723206464366,27.71,155.64,155.58,27.71]
[1723206465468,27.71,155.66,155.59,27.71]
[1723206465659,20.0,155.65,155.6,27.71]
[1723206465869,50.7253,155.64,155.54,0.8038863]
[1723206466068,27.71,155.6,155.54,0.8038863]
[1723206466239,34.3485,155.61,155.54,28.5138863]
[1723206466782,35.95551338,155.61,155.54,28.5138863]
[1723206467145,34.3485,155.61,155.54,28.5138863]
[1723206467459,6.6385,155.61,155.55,27.71]
[1723206468057,6.6385,155.61,155.54,28.5138863]
[1723206468257,34.3485,155.61,155.54,28.5138863]
[1723206469565,27.71,155.6,155.54,0.8038863]
[1723206469871,27.71,155.59,155.54,0.8038863]
[1723206470076,29.31714606,155.59,155.54,0.8038863]
[1723206470282,27.71,155.59,155.54,0.8038863]
[1723206470653,27.71,155.58,155.54,0.8038863]
[1723206470876,29.31731163,155.57,155.54,0.8038863]
[1723206471174,27.71,155.55,155.54,0.8038863]
[1723206472061,33.9834,155.55,155.54,0.8038863]
[1723206473774,34.10889,155.55,155.54,0.8038863]
[1723206473981,35.71672979,155.55,155.54,0.8038863]
[1723206474172,55.84221979,155.55,155.46,27.71]
[1723206474387,27.71,155.52,155.45,27.71]
[1723206474685,27.71,155.51,155.45,27.71]
[1723206474979,27.71,155.46,155.43,1.07714092]
[1723206475172,21.8608,155.49,155.43,1.07714092]
[1723206475173,27.71,155.48,155.43,1.07714092]
[1723206475583,1.60830562,155.47,155.43,1.07714092]
[1723206475871,27.71,155.46,155.43,1.07714092]
[1723206476189,27.71,155.44,155.43,1.07714092]
[1723206476484,22.401,155.44,155.39,0.8038863]
[1723206477479,51.71962745,155.44,155.39,0.8038863]
[1723206478186,27.71,155.43,155.39,0.8038863]
[1723206478358,1.60905031,155.42,155.39,0.8038863]
[1723206478753,1.60878996,155.43,155.39,0.8038863]
[1723206478958,1.60880191,155.42,155.39,0.8038863]
[1723206479175,1.60864856,155.44,155.39,0.8038863]
[1723206479395,29.31864856,155.43,155.39,0.8038863]
[1723206479579,1.60880399,155.46,155.39,0.8038863]
[1723206479885,7.4658722,155.48,155.39,0.8038863]
[1723206479886,1.1150722,155.48,155.39,7.4557863]
[1723206480091,6.64908465,155.5,155.43,27.71]
[1723206480259,27.71,155.49,155.42,27.71]
[1723206480860,27.71,155.47,155.4,27.71]
[1723206481078,27.71,155.46,155.39,28.5138863]
[1723206481381,27.71,155.46,155.4,27.71]
[1723206481576,27.71,155.48,155.41,27.71]
[1723206481761,12.99854394,155.52,155.42,35.8]
[1723206481964,14.60711575,155.52,155.42,35.8]
[1723206482162,12.99854394,155.52,155.42,35.8]
[1723206482563,16.0502,155.53,155.44,35.8]
[1723206482789,1.11482538,155.54,155.46,35.8]
[1723206482962,1.11482538,155.54,155.48,35.8]
[1723206483277,6.3042,155.56,155.48,35.8]
[1723206483692,6.3042,155.56,155.44,16.4039]
[1723206483976,37.40773315,155.55,155.45,80.8]
[1723206484187,1.60784385,155.54,155.45,35.8]
[1723206484759,35.8,155.53,155.43,42.3948]
[1723206484976,1.6080456,155.52,155.44,45.0]
[1723206485358,35.8,155.53,155.44,45.0]
[1723206485573,37.40804558,155.53,155.43,42.3948]
[1723206485777,37.40804558,155.53,155.39,15.9907863]
[1723206485778,35.8,155.51,155.41,35.8]
[1723206486000,1.60823183,155.5,155.41,35.8]
[1723206486390,1.608346,155.5,155.41,35.8]
[1723206486695,35.8,155.51,155.41,35.8]
[1723206487075,1.60814665,155.5,155.41,35.8]
[1723206487280,35.8,155.49,155.39,36.6038863]
[1723206487501,1.60842883,155.48,155.39,36.6038863]
[1723206487796,6.137,155.48,155.39,0.8038863]
[1723206487999,35.8,155.47,155.39,0.8038863]
[1723206488302,1.60869914,155.46,155.39,0.8038863]
[1723206488500,35.8,155.47,155.39,0.8038863]
[1723206488877,1.60863523,155.46,155.39,0.8038863]
[1723206489206,1.60863652,155.45,155.39,0.8038863]
[1723206489877,35.8,155.47,155.39,0.8038863]
[1723206490085,0.25098,155.46,155.39,0.8038863]
[1723206490283,35.8,155.45,155.39,0.8038863]
[1723206492478,35.8,155.43,155.39,0.8038863]
[1723206492680,35.8,155.41,155.39,0.8038863]
[1723206492887,1.60914293,155.4,155.39,0.8038863]
[1723206493299,6.287,155.4,155.39,0.8038863]
[1723206493680,6.41249,155.4,155.39,0.8038863]
[1723206493881,42.45122427,155.41,155.39,0.8038863]
[1723206494112,35.8,155.41,155.39,0.8038863]
[1723206494410,42.45014397,155.41,155.39,0.8038863]
[1723206495288,20.25098,155.4,155.39,0.8038863]
[1723206495485,35.59718,155.4,155.39,0.8038863]
[1723206496083,15.3462,155.4,155.39,0.8038863]
[1723206496282,35.47169,155.4,155.39,0.8038863]
[1723206497106,71.39718,155.4,155.39,0.8038863]
[1723206497600,71.27169,155.4,155.33,1.11098247]
[1723206497794,0.12549,155.39,155.33,1.11098247]
[1723206498315,6.64999832,155.41,155.33,1.11098247]
[1723206498804,1.60923191,155.4,155.33,1.11098247]
[1723206499008,20.0,155.41,155.33,1.11098247]
[1723206499520,1.60912676,155.41,155.33,1.11098247]
[1723206499699,6.65143637,155.43,155.33,1.11098247]
[1723206500084,42.087,155.44,155.34,35.8]
[1723206500694,42.087,155.44,155.33,46.11098247]
[1723206500695,1.60897561,155.43,155.33,1.11098247]
[1723206500891,35.8,155.42,155.33,1.11098247]
[1723206501105,42.44978397,155.44,155.34,42.11689]
[1723206501286,15.584,155.45,155.36,35.8]
[1723206501907,15.584,155.45,155.35,45.0]
[1723206501908,27.86,155.44,155.37,27.86]
[1723206502397,43.444,155.45,155.38,27.86]
[1723206502915,27.86,155.45,155.38,27.86]
[1723206503102,27.86,155.49,155.42,27.86]
[1723206503412,6.4197,155.51,155.44,27.86]
[1723206503592,34.2797,155.51,155.44,27.86]
[1723206503926,6.4846,155.55,155.47,27.86]
[1723206504211,27.86,155.54,155.46,27.86]
[1723206504395,6.4846,155.55,155.45,0.12549]
[1723206504396,27.86,155.53,155.45,0.12549]
[1723206504594,27.86,155.51,155.45,45.0]
[1723206505595,27.86,155.5,155.43,27.86]
[1723206505796,35.79,155.51,155.4,57.6368]
[1723206505992,35.79,155.51,155.41,45.12549]
[1723206506206,35.79,155.51,155.42,35.79]
[1723206506416,35.79,155.51,155.43,45.12549]
[1723206507324,35.79,155.45,155.35,6.2338]
[1723206507530,6.4077,155.46,155.35,6.2338]
[1723206507733,6.4077,155.46,155.36,35.79]
[1723206507923,0.12549,155.54,155.38,35.79]
[1723206507924,35.79,155.49,155.38,35.79]
[1723206508235,6.4077,155.5,155.4,35.79]
[1723206508392,6.4077,155.5,155.42,35.79]
[1723206508590,16.0553,155.53,155.44,35.79]
[1723206508828,16.0553,155.53,155.45,1.28595187]
[1723206509000,6.2042,155.54,155.46,1.28614176]
[1723206509534,35.79,155.53,155.42,35.79]
[1723206509822,35.79,155.51,155.43,1.28645789]
[1723206510024,35.79,155.53,155.44,0.12549]
[1723206510333,20.0,155.52,155.44,0.12549]
[1723206511696,20.0,155.52,155.44,1.41177916]
[1723206511992,35.79,155.53,155.44,1.41177916]
[1723206512196,6.2042,155.54,155.44,37.20177916]
[1723206512412,14.1858823,155.57,155.46,35.79]
[1723206512413,20.0,155.53,155.46,35.79]
[1723206512617,20.0,155.53,155.47,0.12549]
[1723206512918,20.0,155.53,155.44,35.79]
[1723206513109,35.79,155.53,155.45,45.0]
[1723206513427,35.79,155.51,155.43,6.0304]
[1723206513596,35.79,155.51,155.44,45.0]
[1723206513796,35.79,155.53,155.44,45.0]
[1723206513991,20.0,155.54,155.45,1.28620771]
[1723206514190,20.0,155.54,155.44,80.79]
[1723206514803,26.4292,155.54,155.44,80.79]
[1723206515109,26.4292,155.54,155.45,0.12549]
[1723206515110,35.79,155.53,155.45,0.12549]
[1723206515313,35.79,155.53,155.44,45.0]
[1723206515503,26.4292,155.54,155.38,6.5347]
[1723206515504,35.79,155.47,155.38,6.5347]
[1723206515701,63.81810595,155.52,155.39,37.07672332]
[1723206515702,26.4202,155.52,155.39,37.07672332]
[1723206515918,35.79,155.5,155.4,1.28647354]
[1723206516415,42.2208,155.5,155.39,35.79]
[1723206516606,42.2227,155.46,155.35,35.79]
[1723206516914,35.79,155.44,155.35,35.79]
[1723206517718,1.60864551,155.43,155.35,35.79]
[1723206517920,35.79,155.44,155.35,35.79]
[1723206518220,35.79,155.46,155.37,35.79]
[1723206518418,35.79,155.46,155.35,35.79]
[1723206518621,1.60858531,155.45,155.36,0.12549]
[1723206518821,35.79,155.46,155.36,0.12549]
[1723206519121,35.79,155.52,155.42,35.79]
[1723206519323,35.79,155.52,155.43,45.0]
[1723206519500,35.79,155.52,155.44,0.12549]
[1723206519704,35.79,155.52,155.43,45.0]
[1723206519705,35.79,155.5,155.43,45.0]
[1723206519918,35.79,155.5,155.38,37.07635855]
[1723206520120,35.79,155.52,155.4,35.79]
[1723206520300,35.79,155.52,155.41,46.53709023]
[1723206520500,42.2243,155.56,155.44,35.79]
[1723206520697,35.79,155.54,155.45,45.12549]
[1723206521302,6.4343,155.56,155.46,0.12549]
[1723206521303,42.2243,155.56,155.46,0.12549]
[1723206521635,52.30242596,155.56,155.46,0.12549]
[1723206521937,52.30242596,155.56,155.46,0.50014736]
[1723206522116,52.30242596,155.56,155.47,0.12549]
[1723206522305,6.4343,155.56,155.48,36.34227622]
[1723206522505,6.4343,155.56,155.49,45.12549]
[1723206522705,6.4343,155.56,155.49,45.0]
[1723206522914,42.2243,155.56,155.46,35.79]
[1723206523143,42.2243,155.56,155.47,45.12549]
[1723206523353,35.79,155.52,155.42,35.79]
[1723206523534,35.79,155.52,155.43,20.12549]
[1723206524058,35.79,155.52,155.42,35.79]
[1723206524745,35.79,155.52,155.42,37.07640433]
[1723206524945,35.79,155.52,155.42,35.79]
[1723206525662,35.79,155.48,155.37,6.1685]
[1723206525829,35.79,155.48,155.38,37.07626084]
[1723206526643,35.79,155.48,155.38,35.79]
[1723206527147,22.1882,155.49,155.4,35.79]
[1723206527351,22.1882,155.49,155.41,1.28645361]
[1723206527654,22.1882,155.49,155.4,35.79]
[1723206527850,35.79,155.5,155.4,37.07647717]
[1723206528051,35.79,155.52,155.42,35.79]
[1723206528353,35.79,155.52,155.43,46.41171886]
[1723206529352,20.0,155.51,155.43,46.41171886]
[1723206529669,6.431,155.5,155.39,0.12549]
[1723206529828,35.79,155.48,155.34,1.28663679]
[1723206530030,20.0,155.47,155.37,35.79]
[1723206530226,20.0,155.47,155.38,1.28663145]
[1723206530455,20.0,155.47,155.37,35.79]
[1723206531062,35.79,155.46,155.37,35.79]
[1723206531368,35.79,155.46,155.35,35.79]
[1723206531667,42.2225,155.46,155.35,35.79]
[1723206531970,35.79,155.46,155.35,35.79]
[1723206532766,35.79,155.46,155.36,46.41215085]
[1723206533767,35.79,155.46,155.37,35.91549]
[1723206533971,6.4309,155.5,155.39,35.79]
[1723206534256,35.79,155.48,155.4,45.12549]
[1723206534429,20.0,155.49,155.4,46.41202753]
[1723206534635,35.79,155.5,155.4,46.41202753]
[1723206534833,35.79,155.5,155.41,0.12549]
[1723206535843,35.79,155.5,155.4,45.12549]
[1723206536245,35.79,155.5,155.41,0.12549]
[1723206536866,35.79,155.48,155.4,45.12549]
[1723206537036,42.2217,155.48,155.39,6.6498]
[1723206537237,35.79,155.48,155.39,6.6498]
[1723206538164,35.79,155.48,155.39,42.4398]
[1723206538379,35.79,155.48,155.4,45.0]
[1723206538684,35.79,155.48,155.41,0.12549]
[1723206539176,35.79,155.48,155.39,42.4398]
[1723206539177,35.79,155.46,155.35,42.0962]
[1723206539377,35.79,155.46,155.36,66.41218041]
[1723206539685,35.79,155.46,155.37,35.79]
[1723206539871,35.79,155.46,155.38,45.12549]
[1723206540778,35.79,155.46,155.39,0.12549]
[1723206541673,7.69148876,155.53,155.39,36.04098]
[1723206541674,6.0833,155.53,155.39,36.04098]
[1723206542006,35.79,155.52,155.41,35.79]
[1723206542188,6.0833,155.53,155.43,35.79]
[1723206542367,12.5129,155.53,155.44,1.28606446]
[1723206542568,35.79,155.48,155.39,35.79]
[1723206542777,35.79,155.46,155.37,35.79]
[1723206542982,35.79,155.46,155.35,35.79]
[1723206543280,35.79,155.46,155.36,1.28673113]
[1723206544279,35.79,155.46,155.37,0.37647]
[1723206545792,27.85,155.45,155.38,27.85]
[1723206545992,27.85,155.45,155.39,45.12549]
[1723206546167,27.85,155.45,155.4,0.12549]
[1723206546664,27.85,155.44,155.39,45.0]
[1723206547705,27.85,155.42,155.35,27.85]
[1723206547864,27.85,155.38,155.33,1.11098247]
[1723206548692,27.85,155.39,155.33,2.39822632]
[1723206549188,20.0,155.41,155.33,28.96098247]
[1723206549394,27.85,155.38,155.33,1.11098247]
[1723206549598,27.85,155.37,155.33,1.11098247]
[1723206549777,27.85,155.38,155.33,1.11098247]
[1723206550474,27.85,155.39,155.33,1.11098247]
[1723206550894,27.85,155.37,155.33,1.11098247]
[1723206551395,27.85,155.38,155.33,1.11098247]
[1723206552508,6.4342,155.42,155.33,1.11098247]
[1723206552509,27.85,155.41,155.34,0.12549]
[1723206552678,27.85,155.4,155.34,45.12549]
[1723206553293,27.85,155.41,155.35,1.28712041]
[1723206553496,27.85,155.41,155.36,0.12549]
[1723206553677,27.85,155.41,155.36,1.4124865]
[1723206553876,6.4334,155.44,155.36,1.4124865]
[1723206554182,27.85,155.41,155.34,72.85]
[1723206554401,27.85,155.4,155.34,45.0]
[1723206554599,27.85,155.38,155.33,1.11098247]
[1723206556185,21.85,155.38,155.33,1.11098247]
[1723206556700,27.85,155.39,155.33,1.11098247]
[1723206557021,6.166,155.45,155.34,27.85]
[1723206557192,6.166,155.45,155.35,27.85]
[1723206557193,34.57433362,155.43,155.35,27.85]
[1723206557373,27.85,155.41,155.34,27.85]
[1723206557579,27.85,155.39,155.33,1.11098247]
[1723206558098,27.85,155.4,155.34,0.12549]
[1723206558281,27.85,155.41,155.34,0.12549]
[1723206558482,26.4334,155.44,155.33,28.96098247]
[1723206558483,27.85,155.4,155.33,28.96098247]
[1723206558683,27.85,155.39,155.33,28.96098247]
[1723206558896,27.85,155.38,155.33,1.11098247]
[1723206560306,54.57193783,155.44,155.33,28.96098247]
[1723206560307,26.72193783,155.44,155.33,28.96098247]
[1723206560488,27.85,155.34,155.28,1.12790325]
[1723206560692,15.6745,155.35,155.28,1.12790325]
[1723206560993,6.5287,155.38,155.29,0.35839097]
[1723206561183,27.85,155.35,155.29,0.35839097]
[1723206561801,27.85,155.34,155.29,0.35856087]
[1723206561992,27.85,155.33,155.29,0.35856087]
[1723206562187,27.85,155.34,155.29,0.35856087]
[1723206562396,20.0,155.37,155.29,0.35856087]
[1723206562578,27.85,155.35,155.29,0.35856087]
[1723206562784,27.85,155.34,155.28,1.48673442]
[1723206563184,1.11501108,155.36,155.29,28.20880805]
[1723206563481,27.85,155.34,155.29,0.35880805]
[1723206563882,27.85,155.35,155.29,0.35880805]
[1723206564081,27.85,155.35,155.29,0.35849901]
[1723206564281,27.85,155.35,155.28,28.97790325]
[1723206565007,27.85,155.35,155.29,0.35869444]
[1723206565200,27.85,155.35,155.29,0.35845322]
[1723206565407,27.85,155.36,155.29,27.85]
[1723206565600,27.85,155.36,155.3,45.0]
[1723206565905,27.85,155.36,155.3,0.35822724]
[1723206566107,27.85,155.36,155.29,27.85]
[1723206566799,27.85,155.35,155.28,28.97790325]
[1723206566989,27.85,155.34,155.28,1.12790325]
[1723206567188,27.85,155.34,155.28,46.4862546]
[1723206567390,27.85,155.35,155.28,29.3362546]
[1723206567602,27.85,155.34,155.29,0.3585566]
[1723206567801,27.85,155.34,155.29,0.35869493]
[1723206567995,27.85,155.35,155.28,1.12790325]
[1723206568199,27.85,155.35,155.28,28.97790325]
[1723206568399,27.85,155.29,155.23,0.8038863]
[1723206568606,24.21773624,155.29,155.23,0.8038863]
[1723206568793,1.115,155.28,155.23,0.8038863]
[1723206569113,34.2916,155.24,155.23,0.8038863]
[1723206569320,3.4958,155.12,155.07,0.15033663]
[1723206569492,3.4958,155.12,154.98,20.0]
[1723206569710,15.4958,155.18,155.07,27.85]
[1723206570004,15.4958,155.18,155.08,27.85]
[1723206570005,34.2945,155.17,155.08,27.85]
[1723206570196,15.4958,155.18,155.01,2.58880763]
[1723206570391,27.85,155.16,155.01,20.0]
[1723206570725,27.85,155.19,155.1,27.85]
[1723206570884,27.85,155.21,155.12,27.85]
[1723206571084,27.85,155.19,155.12,27.85]
[1723206571318,27.85,155.19,155.11,27.85]
[1723206571621,27.85,155.21,155.13,27.85]
[1723206571822,51.0388,155.24,155.12,35.93]
[1723206572114,51.0388,155.24,155.13,45.0]
[1723206572494,35.93,155.22,155.13,45.0]
[1723206572703,51.0388,155.24,155.13,45.0]
[1723206572904,51.0388,155.24,155.14,20.0]
[1723206573102,51.0388,155.24,155.15,45.0]
[1723206573592,51.0388,155.24,155.12,35.93]
[1723206573791,51.0388,155.24,155.13,20.0]
[1723206573992,51.0388,155.24,155.14,35.93]
[1723206574714,7.62199479,155.27,155.14,35.93]
[1723206574715,35.93,155.26,155.14,35.93]
[1723206574919,35.93,155.26,155.15,45.12549]
[1723206575288,1.61074157,155.25,155.15,45.12549]
[1723206575597,6.0112,155.27,155.15,45.12549]
[1723206575598,6.0112,155.27,155.18,35.93]